[Event "*** Titled Tuesday 3|2 Blitz"]
[Site "Chess.com"]
[Date "2016.04.05"]
[Round "1"]
[White "Zazuliak"]
[Black "Hikaru"]
[Result "0-1"]
[WhiteElo "2370"]
[BlackElo "2877"]
[TimeControl "180+2"]
[EndTime "11:41:09 PDT"]
[Termination "Hikaru won by resignation"]

1. d4 {[%clk 0:03:00]} 1... f5 {[%clk 0:03:00]} 2. c4 {[%clk 0:03:00.5]} 2...
Nf6 {[%clk 0:03:00.5]} 3. Nc3 {[%clk 0:03:00.4]} 3... e6 {[%clk 0:03:01.9]} 4.
Nf3 {[%clk 0:03:00.9]} 4... Bb4 {[%clk 0:03:02.4]} 5. Qc2 {[%clk 0:02:48.7]}
5... Ne4 {[%clk 0:02:58.7]} 6. Bd2 {[%clk 0:02:44.1]} 6... Nxd2 {[%clk
0:02:59.1]} 7. Qxd2 {[%clk 0:02:39.1]} 7... O-O {[%clk 0:02:59.8]} 8. e3 {[%clk
0:02:28.8]} 8... Be7 {[%clk 0:03:00]} 9. Be2 {[%clk 0:02:28.4]} 9... c6 {[%clk
0:03:00.6]} 10. O-O {[%clk 0:02:17.6]} 10... d5 {[%clk 0:03:01.1]} 11. Ne5
{[%clk 0:02:13.4]} 11... Nd7 {[%clk 0:03:01.7]} 12. Nxd7 {[%clk 0:02:10.3]}
12... Bxd7 {[%clk 0:03:02.6]} 13. f4 {[%clk 0:02:04.5]} 13... g5 {[%clk
0:03:02.7]} 14. g3 {[%clk 0:01:43.3]} 14... Kh8 {[%clk 0:03:03.6]} 15. Bd3
{[%clk 0:01:34.4]} 15... Bf6 {[%clk 0:02:46.5]} 16. c5 {[%clk 0:01:09.5]} 16...
Qe7 {[%clk 0:02:32.8]} 17. b4 {[%clk 0:01:03.2]} 17... Qg7 {[%clk 0:02:32.1]}
18. Ne2 {[%clk 0:00:56]} 18... h5 {[%clk 0:02:30.7]} 19. fxg5 {[%clk 0:00:48.8]}
19... Qxg5 {[%clk 0:02:23.4]} 20. h4 {[%clk 0:00:36.1]} 20... Qh6 {[%clk
0:02:20.2]} 21. Nf4 {[%clk 0:00:30.2]} 21... e5 {[%clk 0:02:21.4]} 22. dxe5
{[%clk 0:00:28.1]} 22... Bxe5 {[%clk 0:02:23.3]} 23. Rae1 {[%clk 0:00:27.4]}
23... Rg8 {[%clk 0:02:23.5]} 24. Kh2 {[%clk 0:00:27.7]} 24... Rg7 {[%clk
0:02:23.7]} 25. Qe2 {[%clk 0:00:23]} 25... Rag8 {[%clk 0:02:20.1]} 26. Rg1
{[%clk 0:00:20.7]} 26... Rg4 {[%clk 0:02:13.1]} 27. Qf2 {[%clk 0:00:17.8]} 27...
R4g7 {[%clk 0:02:04.4]} 28. Be2 {[%clk 0:00:17.9]} 28... Be8 {[%clk 0:02:03.3]}
29. Bf3 {[%clk 0:00:18.7]} 29... d4 {[%clk 0:01:58]} 30. Rg2 {[%clk 0:00:06.3]}
30... Bf7 {[%clk 0:01:57.2]} 31. Kh3 {[%clk 0:00:05.8]} 31... Bc7 {[%clk
0:01:55]} 32. Qd2 {[%clk 0:00:05.7]} 32... dxe3 {[%clk 0:01:53.4]} 33. Qxe3
{[%clk 0:00:06.5]} 33... Re8 {[%clk 0:01:44.1]} 34. Qc3 {[%clk 0:00:06.3]} 34...
Rxe1 {[%clk 0:01:44.1]} 35. Qxe1 {[%clk 0:00:07.2]} 35... Kg8 {[%clk 0:01:13.9]}
36. Qe3 {[%clk 0:00:07.6]} 36... Kh7 {[%clk 0:00:46.6]} 37. Qd4 {[%clk
0:00:08.4]} 37... b6 {[%clk 0:00:35.7]} 38. a3 {[%clk 0:00:09.2]} 38... bxc5
{[%clk 0:00:37]} 39. bxc5 {[%clk 0:00:10.1]} 39... Kg8 {[%clk 0:00:35.2]} 40.
Be2 {[%clk 0:00:10.5]} 40... Bxf4 {[%clk 0:00:34.5]} 41. gxf4 {[%clk 0:00:11.2]}
41... Rxg2 {[%clk 0:00:34.4]} 42. Kxg2 {[%clk 0:00:12.3]} 42... Bd5+ {[%clk
0:00:36]} 43. Bf3 {[%clk 0:00:12.7]} 43... Qg6+ {[%clk 0:00:36.9]} 44. Kf2
{[%clk 0:00:13.7]} 44... Bxf3 {[%clk 0:00:33.7]} 45. Qd8+ {[%clk 0:00:14.6]}
45... Kg7 {[%clk 0:00:35.2]} 46. Qe7+ {[%clk 0:00:15.5]} 46... Qf7 {[%clk
0:00:36.8]} 47. Qxf7+ {[%clk 0:00:16.6]} 47... Kxf7 {[%clk 0:00:38.7]} 48. Kxf3
{[%clk 0:00:18.5]} 48... Ke6 {[%clk 0:00:40.3]} 49. Ke3 {[%clk 0:00:19.9]} 49...
Kd5 {[%clk 0:00:41.4]} 50. Kd3 {[%clk 0:00:21.8]} 50... Kxc5 {[%clk 0:00:41.8]}
51. Kc3 {[%clk 0:00:22.6]} 0-1

[Event "*** Titled Tuesday 3|2 Blitz"]
[Site "Chess.com"]
[Date "2016.04.05"]
[Round "1"]
[White "Kawhi_Leonard2"]
[Black "lionheart95"]
[Result "1-0"]
[WhiteElo "2102"]
[BlackElo "2373"]
[TimeControl "180+2"]
[EndTime "11:41:16 PDT"]
[Termination "Kawhi_Leonard2 won by resignation"]

1. e4 {[%clk 0:02:58.8]} 1... e6 {[%clk 0:03:00.7]} 2. d4 {[%clk 0:02:57.8]}
2... d5 {[%clk 0:03:01.5]} 3. Nd2 {[%clk 0:02:58.6]} 3... Be7 {[%clk 0:03:01.7]}
4. Ngf3 {[%clk 0:02:58.2]} 4... Nf6 {[%clk 0:03:02.5]} 5. Bd3 {[%clk 0:02:59.1]}
5... c5 {[%clk 0:03:02.2]} 6. exd5 {[%clk 0:02:59.5]} 6... Qxd5 {[%clk
0:02:59.7]} 7. dxc5 {[%clk 0:02:58.7]} 7... Bxc5 {[%clk 0:02:58.7]} 8. O-O
{[%clk 0:02:59.6]} 8... O-O {[%clk 0:02:58.8]} 9. Nb3 {[%clk 0:02:59.4]} 9...
Bb6 {[%clk 0:02:59]} 10. Bg5 {[%clk 0:02:58.6]} 10... Nbd7 {[%clk 0:02:54.7]}
11. Qe2 {[%clk 0:02:59.7]} 11... h6 {[%clk 0:02:55.7]} 12. Be3 {[%clk
0:02:58.2]} 12... Bxe3 {[%clk 0:02:52.3]} 13. Qxe3 {[%clk 0:02:59.1]} 13... Ng4
{[%clk 0:02:50.7]} 14. Qe4 {[%clk 0:02:54.8]} 14... Qxe4 {[%clk 0:02:45.7]} 15.
Bxe4 {[%clk 0:02:55.8]} 15... Ngf6 {[%clk 0:02:44]} 16. Bd3 {[%clk 0:02:56.7]}
16... b6 {[%clk 0:02:45.1]} 17. Rfe1 {[%clk 0:02:53.6]} 17... Bb7 {[%clk
0:02:46]} 18. Ne5 {[%clk 0:02:50.5]} 18... Rfd8 {[%clk 0:02:45.9]} 19. f3 {[%clk
0:02:48.8]} 19... Rac8 {[%clk 0:02:46.5]} 20. Nxd7 {[%clk 0:02:46.3]} 20... Rxd7
{[%clk 0:02:46.9]} 21. Rad1 {[%clk 0:02:30.8]} 21... Kf8 {[%clk 0:02:46.9]} 22.
c3 {[%clk 0:02:27.7]} 22... Rcd8 {[%clk 0:02:46.5]} 23. Be2 {[%clk 0:02:28.6]}
23... Nd5 {[%clk 0:02:46.6]} 24. Kf2 {[%clk 0:02:25.4]} 24... Ke7 {[%clk
0:02:45.8]} 25. g3 {[%clk 0:02:17.1]} 25... g5 {[%clk 0:02:38.3]} 26. a3 {[%clk
0:02:09.4]} 26... Bc6 {[%clk 0:02:32.4]} 27. Nd4 {[%clk 0:02:07.7]} 27... Ba4
{[%clk 0:02:33.1]} 28. Rc1 {[%clk 0:01:51.6]} 28... Rc7 {[%clk 0:02:29.7]} 29.
Bb5 {[%clk 0:01:47.8]} 29... Bxb5 {[%clk 0:02:23.9]} 30. Nxb5 {[%clk 0:01:48.8]}
30... Rcd7 {[%clk 0:02:25.2]} 31. Nd4 {[%clk 0:01:40.9]} 31... Kf6 {[%clk
0:02:22.8]} 32. Nc6 {[%clk 0:01:37.7]} 32... Rc8 {[%clk 0:02:22.8]} 33. Ne5
{[%clk 0:01:37.2]} 33... Rd6 {[%clk 0:02:22.5]} 34. Rcd1 {[%clk 0:01:33.9]}
34... Rcd8 {[%clk 0:02:19.1]} 35. Nc4 {[%clk 0:01:11.7]} 35... R6d7 {[%clk
0:02:17.9]} 36. Ne5 {[%clk 0:01:12.8]} 36... Rd6 {[%clk 0:02:18.6]} 37. Nc4
{[%clk 0:01:13.4]} 37... Rc6 {[%clk 0:02:19.6]} 38. Ne5 {[%clk 0:01:14.2]} 38...
Rcc8 {[%clk 0:02:18.7]} 39. c4 {[%clk 0:01:08.7]} 39... Ne7 {[%clk 0:02:19.3]}
40. f4 {[%clk 0:00:51]} 40... gxf4 {[%clk 0:02:18.9]} 41. gxf4 {[%clk
0:00:52.1]} 41... Nf5 {[%clk 0:02:19.4]} 42. b4 {[%clk 0:00:49.3]} 42... h5
{[%clk 0:02:18.3]} 43. c5 {[%clk 0:00:31.9]} 43... bxc5 {[%clk 0:02:15.3]} 44.
bxc5 {[%clk 0:00:32.3]} 44... Nd4 {[%clk 0:02:13.8]} 45. Re4 {[%clk 0:00:26.6]}
45... Nb5 {[%clk 0:02:09.9]} 46. Rxd8 {[%clk 0:00:24.8]} 46... Rxd8 {[%clk
0:02:09.8]} 47. a4 {[%clk 0:00:25.7]} 47... Nc3 {[%clk 0:02:09.3]} 48. Rb4
{[%clk 0:00:23.1]} 48... Nd5 {[%clk 0:02:08.5]} 49. Rb7 {[%clk 0:00:15.9]} 49...
Nxf4 {[%clk 0:02:08.6]} 50. Nd7+ {[%clk 0:00:16.5]} 50... Ke7 {[%clk 0:02:05.8]}
51. Ne5+ {[%clk 0:00:16.9]} 51... Kf6 {[%clk 0:02:03.3]} 52. Nd7+ {[%clk
0:00:17.6]} 52... Kf5 {[%clk 0:02:04.5]} 53. Rxa7 {[%clk 0:00:17.3]} 53... Nd3+
{[%clk 0:02:02.8]} 54. Ke3 {[%clk 0:00:17.2]} 54... Ne5 {[%clk 0:02:03.7]} 55.
Nxe5 {[%clk 0:00:16.7]} 55... Kxe5 {[%clk 0:02:04.9]} 56. Rxf7 {[%clk
0:00:17.8]} 56... Rc8 {[%clk 0:02:05.5]} 57. Rh7 {[%clk 0:00:18.5]} 57... Kd5
{[%clk 0:02:03.3]} 58. Rxh5+ {[%clk 0:00:19]} 58... Kc6 {[%clk 0:02:04.2]} 59.
Re5 {[%clk 0:00:19.9]} 59... Ra8 {[%clk 0:02:04]} 60. Rxe6+ {[%clk 0:00:19.6]}
60... Kxc5 {[%clk 0:02:03.7]} 61. Re4 {[%clk 0:00:21.3]} 61... Rb8 {[%clk
0:02:01.3]} 62. h4 {[%clk 0:00:21.9]} 62... Rf8 {[%clk 0:02:00]} 63. h5 {[%clk
0:00:22.3]} 63... Kb6 {[%clk 0:01:57.7]} 64. Rh4 {[%clk 0:00:22.9]} 64... Re8+
{[%clk 0:01:57.1]} 65. Kf4 {[%clk 0:00:22.9]} 65... Ra8 {[%clk 0:01:57.2]} 66.
Kf5 {[%clk 0:00:23.1]} 66... Rf8+ {[%clk 0:01:57.4]} 67. Kg6 {[%clk 0:00:24.1]}
67... Rg8+ {[%clk 0:01:58.6]} 68. Kf7 {[%clk 0:00:25.3]} 68... Rg1 {[%clk
0:01:58.3]} 69. h6 {[%clk 0:00:26.4]} 69... Rf1+ {[%clk 0:01:59.7]} 70. Kg7
{[%clk 0:00:27]} 70... Rg1+ {[%clk 0:02:00.8]} 71. Kf6 {[%clk 0:00:24.5]} 71...
Rf1+ {[%clk 0:02:01.9]} 72. Kg5 {[%clk 0:00:25.7]} 72... Rg1+ {[%clk 0:02:03.1]}
73. Rg4 {[%clk 0:00:26.9]} 73... Rh1 {[%clk 0:02:04.2]} 74. Kg6 {[%clk
0:00:28.2]} 74... Ka5 {[%clk 0:02:03.3]} 75. Kg7 {[%clk 0:00:29.4]} 1-0

[Event "*** Titled Tuesday 3|2 Blitz"]
[Site "Chess.com"]
[Date "2016.04.05"]
[Round "1"]
[White "manubibi"]
[Black "SCIM"]
[Result "0-1"]
[WhiteElo "2443"]
[BlackElo "2205"]
[TimeControl "180+2"]
[EndTime "11:41:20 PDT"]
[Termination "SCIM won on time"]

1. e4 {[%clk 0:03:01.3]} 1... c5 {[%clk 0:02:41.6]} 2. Nf3 {[%clk 0:03:01.4]}
2... e6 {[%clk 0:02:41.5]} 3. d4 {[%clk 0:03:01.3]} 3... cxd4 {[%clk 0:02:43.1]}
4. Nxd4 {[%clk 0:03:02.2]} 4... Nc6 {[%clk 0:02:44.6]} 5. Nc3 {[%clk 0:03:02]}
5... Qc7 {[%clk 0:02:45.5]} 6. Be2 {[%clk 0:03:02.3]} 6... Nf6 {[%clk
0:02:45.1]} 7. O-O {[%clk 0:03:03]} 7... Be7 {[%clk 0:02:45.8]} 8. Kh1 {[%clk
0:03:03.3]} 8... O-O {[%clk 0:02:45.7]} 9. f4 {[%clk 0:03:01.6]} 9... d6 {[%clk
0:02:46.4]} 10. Be3 {[%clk 0:03:01.3]} 10... Nxd4 {[%clk 0:02:47]} 11. Bxd4
{[%clk 0:03:01]} 11... b6 {[%clk 0:02:47.9]} 12. Qe1 {[%clk 0:02:53.6]} 12...
Bb7 {[%clk 0:02:43.4]} 13. Bd3 {[%clk 0:02:54.6]} 13... g6 {[%clk 0:02:11.3]}
14. Qg3 {[%clk 0:02:09.5]} 14... Nh5 {[%clk 0:02:00.2]} 15. Qh3 {[%clk
0:02:06.6]} 15... e5 {[%clk 0:01:56.2]} 16. fxe5 {[%clk 0:02:01.6]} 16... dxe5
{[%clk 0:01:55.8]} 17. Be3 {[%clk 0:02:02.3]} 17... Nf4 {[%clk 0:01:46.6]} 18.
Qg3 {[%clk 0:01:58.1]} 18... Nh5 {[%clk 0:01:25.5]} 19. Qf3 {[%clk 0:01:57.2]}
19... f5 {[%clk 0:01:19]} 20. Qe2 {[%clk 0:01:42.2]} 20... f4 {[%clk 0:01:18]}
21. Bf2 {[%clk 0:01:27.6]} 21... Bc5 {[%clk 0:01:14.1]} 22. Bc4+ {[%clk
0:01:27.1]} 22... Kg7 {[%clk 0:01:13.6]} 23. Nd5 {[%clk 0:01:28.3]} 23... Bxd5
{[%clk 0:01:12.4]} 24. Bxd5 {[%clk 0:01:27.8]} 24... Rac8 {[%clk 0:01:11.1]} 25.
c3 {[%clk 0:01:10.4]} 25... Bxf2 {[%clk 0:01:09]} 26. Qxf2 {[%clk 0:01:11.6]}
26... Nf6 {[%clk 0:01:10.3]} 27. Rad1 {[%clk 0:01:09.3]} 27... Rfd8 {[%clk
0:01:10.2]} 28. Qf3 {[%clk 0:01:07.9]} 28... Qc5 {[%clk 0:01:08.1]} 29. Rfe1
{[%clk 0:01:06.5]} 29... Rc7 {[%clk 0:01:08.6]} 30. c4 {[%clk 0:01:02.2]} 30...
Rcd7 {[%clk 0:01:07.3]} 31. Qc3 {[%clk 0:00:59.9]} 31... Qe7 {[%clk 0:01:05.5]}
32. h3 {[%clk 0:00:56.6]} 32... Nh5 {[%clk 0:01:04.4]} 33. b4 {[%clk 0:00:52.4]}
33... Rc7 {[%clk 0:01:00.4]} 34. Rc1 {[%clk 0:00:50.9]} 34... g5 {[%clk
0:00:57.4]} 35. c5 {[%clk 0:00:50.2]} 35... Ng3+ {[%clk 0:00:51.7]} 36. Kg1
{[%clk 0:00:46.9]} 36... g4 {[%clk 0:00:52.7]} 37. hxg4 {[%clk 0:00:41.2]} 37...
Rf8 {[%clk 0:00:49.3]} 38. c6 {[%clk 0:00:27.2]} 38... Rf6 {[%clk 0:00:47.8]}
39. Kf2 {[%clk 0:00:20.3]} 39... Rg6 {[%clk 0:00:29]} 40. Qf3 {[%clk 0:00:11.6]}
40... Qxb4 {[%clk 0:00:26.9]} 41. Rc2 {[%clk 0:00:11.3]} 41... Qd4+ {[%clk
0:00:26.4]} 42. Re3 {[%clk 0:00:09.7]} 42... h5 {[%clk 0:00:21.3]} 43. Rc4
{[%clk 0:00:03.8]} 43... fxe3+ {[%clk 0:00:19.1]} 44. Kxg3 {[%clk 0:00:03.1]}
44... Rxg4+ {[%clk 0:00:18.5]} 45. Kh3 {[%clk 0:00:04.4]} 45... Qd2 {[%clk
0:00:16.3]} 0-1

[Event "*** Titled Tuesday 3|2 Blitz"]
[Site "Chess.com"]
[Date "2016.04.05"]
[Round "1"]
[White "Mischuk_D"]
[Black "oskariot"]
[Result "0-1"]
[WhiteElo "2559"]
[BlackElo "2314"]
[TimeControl "180+2"]
[EndTime "11:41:28 PDT"]
[Termination "oskariot won by resignation"]

1. d4 {[%clk 0:03:01.9]} 1... Nf6 {[%clk 0:02:59.9]} 2. c4 {[%clk 0:03:02.5]}
2... g6 {[%clk 0:03:00.9]} 3. Nc3 {[%clk 0:03:03.1]} 3... Bg7 {[%clk 0:03:02.2]}
4. e4 {[%clk 0:03:04.4]} 4... d6 {[%clk 0:03:04]} 5. f3 {[%clk 0:03:05.8]} 5...
O-O {[%clk 0:03:05.7]} 6. Be3 {[%clk 0:03:06.7]} 6... e5 {[%clk 0:03:07.3]} 7.
Nge2 {[%clk 0:03:04.3]} 7... c6 {[%clk 0:02:58.2]} 8. Qd2 {[%clk 0:03:04.7]}
8... a6 {[%clk 0:02:59.3]} 9. d5 {[%clk 0:03:02.6]} 9... b5 {[%clk 0:02:40.9]}
10. dxc6 {[%clk 0:03:00.7]} 10... Nxc6 {[%clk 0:02:41.3]} 11. cxb5 {[%clk
0:03:01.7]} 11... axb5 {[%clk 0:02:41.3]} 12. Nxb5 {[%clk 0:02:39.7]} 12... d5
{[%clk 0:02:40.1]} 13. Bc5 {[%clk 0:02:30.7]} 13... dxe4 {[%clk 0:01:42.1]} 14.
Qxd8 {[%clk 0:02:19.2]} 14... Rxd8 {[%clk 0:01:42.3]} 15. Nec3 {[%clk
0:02:19.4]} 15... exf3 {[%clk 0:01:38.8]} 16. gxf3 {[%clk 0:02:20.2]} 16... Nd4
{[%clk 0:01:39]} 17. Kf2 {[%clk 0:01:40.7]} 17... Bb7 {[%clk 0:01:24.1]} 18. Bg2
{[%clk 0:01:34.1]} 18... Nxb5 {[%clk 0:01:16]} 19. Nxb5 {[%clk 0:01:30.7]} 19...
Rd2+ {[%clk 0:01:17.2]} 20. Kg1 {[%clk 0:01:26]} 20... Rxb2 {[%clk 0:01:04.7]}
21. Nd6 {[%clk 0:01:22.7]} 21... Bd5 {[%clk 0:01:04.7]} 22. a4 {[%clk 0:01:23]}
22... Nh5 {[%clk 0:01:00.8]} 23. h4 {[%clk 0:01:02.9]} 23... Nf4 {[%clk
0:00:58.6]} 24. Rh2 {[%clk 0:01:04.2]} 24... Bf8 {[%clk 0:00:38.7]} 25. Bf1
{[%clk 0:00:55.1]} 25... Rxh2 {[%clk 0:00:25.3]} 26. Kxh2 {[%clk 0:00:57]} 26...
Rd8 {[%clk 0:00:26]} 27. Ne4 {[%clk 0:00:50.6]} 27... Bxe4 {[%clk 0:00:25]} 28.
Bxf8 {[%clk 0:00:51.4]} 28... Bxf3 {[%clk 0:00:23.8]} 29. Bb4 {[%clk 0:00:51.5]}
29... Rb8 {[%clk 0:00:23.8]} 30. Bc3 {[%clk 0:00:51.7]} 30... f6 {[%clk
0:00:22.4]} 31. a5 {[%clk 0:00:52.7]} 31... Rb3 {[%clk 0:00:22.8]} 32. Be1
{[%clk 0:00:48.4]} 32... Rb2+ {[%clk 0:00:22.1]} 33. Kg1 {[%clk 0:00:48.4]}
33... Ba8 {[%clk 0:00:17.6]} 34. a6 {[%clk 0:00:49.2]} 34... g5 {[%clk 0:00:19]}
35. hxg5 {[%clk 0:00:49.5]} 35... fxg5 {[%clk 0:00:20.4]} 36. Bc3 {[%clk
0:00:50.8]} 36... Rc2 {[%clk 0:00:20]} 37. Bxe5 {[%clk 0:00:51.3]} 37... Ne2+
{[%clk 0:00:20.6]} 38. Bxe2 {[%clk 0:00:52]} 38... Rxe2 {[%clk 0:00:21.6]} 39.
Bf6 {[%clk 0:00:50.9]} 39... Rg2+ {[%clk 0:00:20]} 40. Kf1 {[%clk 0:00:51.8]}
40... Rh2 {[%clk 0:00:21.4]} 41. Ra5 {[%clk 0:00:51.6]} 41... h6 {[%clk
0:00:21.9]} 42. a7 {[%clk 0:00:52.6]} 42... Kf7 {[%clk 0:00:23.1]} 43. Bd4
{[%clk 0:00:53.5]} 43... Rd2 {[%clk 0:00:23.3]} 44. Be3 {[%clk 0:00:54.1]} 44...
Rd5 {[%clk 0:00:24.4]} 45. Ra4 {[%clk 0:00:53.7]} 45... Rf5+ {[%clk 0:00:25.3]}
46. Ke2 {[%clk 0:00:54.3]} 46... Kg6 {[%clk 0:00:26.8]} 47. Rb4 {[%clk
0:00:55.5]} 47... Ra5 {[%clk 0:00:25.6]} 48. Rb8 {[%clk 0:00:56.3]} 48... Bd5
{[%clk 0:00:26.6]} 49. Rd8 {[%clk 0:00:57.1]} 49... Ra2+ {[%clk 0:00:27]} 50.
Kd3 {[%clk 0:00:57.6]} 50... Bg2 {[%clk 0:00:28]} 51. Rd6+ {[%clk 0:00:55.6]}
51... Kh5 {[%clk 0:00:28.9]} 52. Rf6 {[%clk 0:00:55.6]} 52... Ra3+ {[%clk
0:00:23.6]} 53. Kd2 {[%clk 0:00:56.5]} 53... Ra2+ {[%clk 0:00:24.7]} 54. Kc1
{[%clk 0:00:56.9]} 54... Be4 {[%clk 0:00:24.8]} 55. Bc5 {[%clk 0:00:56.1]} 55...
Rc2+ {[%clk 0:00:25.4]} 56. Kd1 {[%clk 0:00:55.6]} 56... Rxc5 {[%clk 0:00:26.6]}
57. Re6 {[%clk 0:00:57.1]} 57... Bf3+ {[%clk 0:00:27.2]} 58. Kd2 {[%clk
0:00:57.8]} 58... Ra5 {[%clk 0:00:28.1]} 59. Re7 {[%clk 0:00:59.4]} 59... Kg4
{[%clk 0:00:29]} 60. Ke3 {[%clk 0:01:00.8]} 60... Ra3+ {[%clk 0:00:29.6]} 61.
Kf2 {[%clk 0:01:02.1]} 61... h5 {[%clk 0:00:28.6]} 0-1

[Event "*** Titled Tuesday 3|2 Blitz"]
[Site "Chess.com"]
[Date "2016.04.05"]
[Round "1"]
[White "chessbia"]
[Black "MasterLeif"]
[Result "1/2-1/2"]
[WhiteElo "2011"]
[BlackElo "2376"]
[TimeControl "180+2"]
[EndTime "11:41:56 PDT"]
[Termination "Game drawn - insufficient material"]

1. d4 {[%clk 0:03:01.9]} 1... d5 {[%clk 0:02:55.5]} 2. c4 {[%clk 0:03:02.7]}
2... e5 {[%clk 0:02:50.9]} 3. dxe5 {[%clk 0:03:03.1]} 3... d4 {[%clk 0:02:52.6]}
4. Nf3 {[%clk 0:03:02.6]} 4... Nc6 {[%clk 0:02:54]} 5. a3 {[%clk 0:03:01]} 5...
Nge7 {[%clk 0:02:48.6]} 6. e3 {[%clk 0:03:00.8]} 6... Bg4 {[%clk 0:02:47.2]} 7.
Be2 {[%clk 0:02:56.8]} 7... dxe3 {[%clk 0:02:44.6]} 8. Qxd8+ {[%clk 0:02:53.1]}
8... Rxd8 {[%clk 0:02:46.5]} 9. Bxe3 {[%clk 0:02:53.9]} 9... Ng6 {[%clk
0:02:47.8]} 10. Nbd2 {[%clk 0:02:48.6]} 10... Ngxe5 {[%clk 0:02:43.8]} 11. Nxe5
{[%clk 0:02:43.2]} 11... Nxe5 {[%clk 0:02:45.7]} 12. Bxg4 {[%clk 0:02:33.4]}
12... Nxg4 {[%clk 0:02:47.6]} 13. Bf4 {[%clk 0:02:35]} 13... Bd6 {[%clk
0:02:30.3]} 14. Bxd6 {[%clk 0:02:27.6]} 14... Rxd6 {[%clk 0:02:32.2]} 15. f3
{[%clk 0:01:34]} 15... Ne3 {[%clk 0:01:26.1]} 16. Ne4 {[%clk 0:01:30.1]} 16...
Re6 {[%clk 0:01:07.5]} 17. Kf2 {[%clk 0:01:30.1]} 17... Nxc4 {[%clk 0:01:03.1]}
18. Rhc1 {[%clk 0:01:19.9]} 18... Rc6 {[%clk 0:01:02.9]} 19. b3 {[%clk
0:01:17.2]} 19... Ne5 {[%clk 0:01:03]} 20. Rxc6 {[%clk 0:01:12]} 20... Nxc6
{[%clk 0:01:04.9]} 21. Nc5 {[%clk 0:01:07]} 21... b6 {[%clk 0:00:58.7]} 22. Re1+
{[%clk 0:01:05.7]} 22... Kd8 {[%clk 0:00:56]} 23. Ne4 {[%clk 0:00:53.1]} 23...
h6 {[%clk 0:00:40.1]} 24. Ng3 {[%clk 0:00:43.2]} 24... Nd4 {[%clk 0:00:31.7]}
25. Rd1 {[%clk 0:00:38.7]} 25... c5 {[%clk 0:00:32.6]} 26. b4 {[%clk 0:00:40.3]}
26... Kc7 {[%clk 0:00:33]} 27. bxc5 {[%clk 0:00:41.2]} 27... bxc5 {[%clk
0:00:34.9]} 28. Rc1 {[%clk 0:00:38.5]} 28... Ne6 {[%clk 0:00:32]} 29. Nf5 {[%clk
0:00:37.3]} 29... Rd8 {[%clk 0:00:31.7]} 30. Ke3 {[%clk 0:00:34.1]} 30... h5
{[%clk 0:00:32.3]} 31. h4 {[%clk 0:00:31.5]} 31... g6 {[%clk 0:00:33.5]} 32. Ng3
{[%clk 0:00:29.8]} 32... Rd4 {[%clk 0:00:34.7]} 33. Ne4 {[%clk 0:00:29.3]} 33...
Ra4 {[%clk 0:00:25.7]} 34. Rc3 {[%clk 0:00:28.3]} 34... Kb6 {[%clk 0:00:24.6]}
35. Nd6 {[%clk 0:00:28]} 35... f5 {[%clk 0:00:17.8]} 36. g3 {[%clk 0:00:28]}
36... Nd4 {[%clk 0:00:18.7]} 37. Nc4+ {[%clk 0:00:27]} 37... Kb5 {[%clk
0:00:17.8]} 38. Nd6+ {[%clk 0:00:26.7]} 38... Kc6 {[%clk 0:00:18.3]} 39. Nf7
{[%clk 0:00:26.1]} 39... Kd5 {[%clk 0:00:15.1]} 40. Nh8 {[%clk 0:00:21]} 40...
Rxa3 {[%clk 0:00:11.6]} 41. Rxa3 {[%clk 0:00:21.4]} 41... Nc2+ {[%clk
0:00:13.3]} 42. Kd2 {[%clk 0:00:22.5]} 42... Nxa3 {[%clk 0:00:15.2]} 43. Nxg6
{[%clk 0:00:23]} 43... Nc4+ {[%clk 0:00:14.8]} 44. Kc3 {[%clk 0:00:23.1]} 44...
Ne5 {[%clk 0:00:15]} 45. Nf4+ {[%clk 0:00:24.2]} 45... Kc6 {[%clk 0:00:14.4]}
46. Nxh5 {[%clk 0:00:25.5]} 46... Nxf3 {[%clk 0:00:14.6]} 47. Ng7 {[%clk
0:00:26.6]} 47... Kd5 {[%clk 0:00:05.9]} 48. h5 {[%clk 0:00:27]} 48... Ke5
{[%clk 0:00:04.1]} 49. h6 {[%clk 0:00:28.2]} 49... Ng5 {[%clk 0:00:05.2]} 50.
Ne8 {[%clk 0:00:25.7]} 50... a5 {[%clk 0:00:06.2]} 51. Kc4 {[%clk 0:00:26.8]}
51... a4 {[%clk 0:00:07.6]} 52. Nc7 {[%clk 0:00:26.9]} 52... Kf6 {[%clk
0:00:07.6]} 53. Nb5 {[%clk 0:00:27.2]} 53... Kg6 {[%clk 0:00:08.5]} 54. Kxc5
{[%clk 0:00:28.7]} 54... Kxh6 {[%clk 0:00:09.1]} 55. Kb4 {[%clk 0:00:29.6]}
55... Ne4 {[%clk 0:00:10.3]} 56. Nd4 {[%clk 0:00:30.6]} 56... Kg5 {[%clk
0:00:03]} 57. Kxa4 {[%clk 0:00:30.5]} 57... Nxg3 {[%clk 0:00:02.7]} 58. Nxf5
{[%clk 0:00:29.4]} 58... Nxf5 {[%clk 0:00:04.6]} 1/2-1/2